Workbook

Sheet 使い方
A1: このエクセルファイルは、マクロを使っています。 セキュリティの警告でマクロが無効にされた場合は、コンテンツの有効化を行って下さい。
A2: 平成30年度厚生労働科学研究費補助金「健康寿命及び地域格差の要因分析と健康増進対策の効果検証に関する研究」（研究代表者：辻一郎） 「健康寿命の地域格差の算定・評価に関する研究」（研究分担者：横山徹爾）
A3: 健康指標の地域格差見える化ツールVer.1.1
A4: 健康日本２１（第二次）中間評価で健康寿命の都道府県格差の評価のために用いられたのと同様の図を、自治体で作成できるようにしたツールです。
A5: 図の作り方
A6: （１）「格差の縮小」シートの６～１５行目の途中に、必要なだけ行を追加（又は削除）する。 ※最初の行と最後の行は削除しないように、７～１４行目の範囲で追加削除するとよい。 ※No.の列や右側の計算領域（M列目から右）に空白セルが生じるが、計算時に自動的に埋められるのでそのままでよい。 ※標準化死亡比(SMR)等の比を指標とする（信頼区間の上側と下側の幅が異なる）場合には「格差の縮小 (SMR用)」を使用する。
A7: （２）水色のセルに必要な情報を入力する。 ※水色のセルの内容が図表に自動的に反映されるので全て入力する。 ※95%信頼区間も入力することが望ましいが、不明の場合にはブランクにし「格差の縮小」シートを使用する。その場合、左側の図は推定値で描かれる。 ※２時点だけで作成する場合は、中間年をブランクにしておき、最後に図の中間年の部分を削除する。
A8: （３）「計算開始」ボタンをクリックする。
A9: （４）図が自動的に作成される。 ※グラフのＸ軸、Ｙ軸のスケール等は見やすいように変えてください。
A10: 詳細は、分担研究報告書「健康寿命の地域格差の算定・評価に関する研究」（研究分担者：横山徹爾）をご覧下さい。
A11: 更新履歴
A12: 2019/9/5 ver.1.0公開
A13: 2021/12/21 ver.1.1公開
A14: ・ver.1.0で推定値の推移の図（右側の図）が正しくプロットされない不具合を修正。
A15: ・正規スコア（Ｘ軸）の計算方法を微修正（健康日本２１（第２次）最終評価（案）資料と同じ計算方法に変更）

Sheet 格差の縮小
A1: XX県 | B1: 女性 | C1: ６５歳健康寿命（年） | F1: 図の軸範囲 | G1: 18 | H1: 21 | M1: データの行数
M2: =ROWS(M6:M15) -> 10
A3: =A1&"・"&C1&"【"&B1&"】" -> XX県・６５歳健康寿命（年）【女性】
A4: No. | B4: 市町村 | C4: 2000年 | F4: 2013年 | I4: 2016年 | P4: =C4 -> 2000年 | V4: =F4 -> 2013年 | AB4: =I4 -> 2016年 | AI4: =C4 -> 2000年 | AL4: =F4 -> 2013年 | AO4: =I4 -> 2016年
C5: 推定値 | D5: 95％信頼区間 | F5: 推定値 | G5: 95％信頼区間 | I5: 推定値 | J5: 95％信頼区間 | M5: 順位 | N5: prob. | O5: Z値 | P5: 推定値 | Q5: 95％信頼区間 | S5: 標準誤差 | T5: 標準誤差2 | U5: 補正値 | V5: 推定値 | W5: 95％信頼区間 | Y5: 標準誤差 | Z5: 標準誤差2 | AA5: 補正値 | AB5: 推定値 | AC5: 95％信頼区間 | AE5: 標準誤差 | AF5: 標準誤差2 | AG5: 補正値 | AI5: 推定値 | AJ5: SE | AL5: 推定値 | AM5: SE | AO5: 推定値 | AP5: SE
A6: 1 | B6: A市 | C6: 19.2395863 | D6: 19.03700202 | E6: 19.44217058 | F6: 19.23569153 | G6: 18.88688946 | H6: 19.5844936 | I6: 19.72621743 | J6: 19.4796881 | K6: 19.97274675 | M6: 1 | N6: =(M6-0.375)/(COUNT(M$6:M$15)+0.25) -> 0.06097560976 | O6: =_xlfn.NORM.INV(N6,0,1) -> -1.546635271 | P6: 19.2395863 | Q6: 19.03700202 | R6: 19.44217058 | S6: =(R6-Q6)/1.96/2 -> 0.1033593255 | T6: =S6^2 -> 0.01068315017 | U6: =(P6-P$16)*(P$21/P$18)+P$16 -> 19.30160401 | V6: 19.23569153 | W6: 18.88688946 | X6: 19.5844936 | Y6: =(H6-G6)/1.96/2 -> 0.1779602406 | Z6: =Y6^2 -> 0.03166984722 | AA6: =(V6-V$16)*(V$21/V$18)+V$16 -> 19.40367952 | AB6: 19.72621743 | AC6: 19.4796881 | AD6: 19.97274675 | AE6: =(K6-J6)/1.96/2 -> 0.1257802685 | AF6: =AE6^2 -> 0.01582067594 | AG6: =(AB6-AB$16)*(AB$21/AB$18)+AB$16 -> 19.84547729 | AI6: =C6 -> 19.2395863 | AJ6: =(E6-D6)/2/1.96 -> 0.1033593255 | AL6: =F6 -> 19.23569153 | AM6: =(H6-G6)/2/1.96 -> 0.1779602406 | AO6: =I6 -> 19.72621743 | AP6: =(K6-J6)/2/1.96 -> 0.1257802685
A7: 2 | B7: B市 | C7: 19.65908845 | D7: 19.42124271 | E7: 19.8969342 | F7: 19.88512967 | G7: 19.54702408 | H7: 20.22323526 | I7: 20.24607359 | J7: 19.91476034 | K7: 20.57738685 | M7: 2 | N7: =(M7-0.375)/(COUNT(M$6:M$15)+0.25) -> 0.1585365854 | O7: =_xlfn.NORM.INV(N7,0,1) -> -1.000490546 | P7: 19.48136147 | Q7: 19.112663 | R7: 19.85005994 | S7: 0.1881114641 | T7: 0.03538592291 | U7: 19.50683756 | V7: 19.64537275 | W7: 19.39980686 | X7: 19.89093864 | Y7: 0.1725028537 | Z7: 0.02975723454 | AA7: 19.67488167 | AB7: 20.04507728 | AC7: 19.67729473 | AD7: 20.41285982 | AE7: 0.1690373751 | AF7: 0.02857363418 | AG7: 20.08766884 | AI7: =C7 -> 19.65908845 | AJ7: =(E7-D7)/2/1.96 -> 0.1213498698 | AL7: =F7 -> 19.88512967 | AM7: =(H7-G7)/2/1.96 -> 0.1725028537 | AO7: =I7 -> 20.24607359 | AP7: =(K7-J7)/2/1.96 -> 0.1690373751
A8: 3 | B8: C市 | C8: 19.48136147 | D8: 19.112663 | E8: 19.85005994 | F8: 19.66484998 | G8: 19.35184418 | H8: 19.97785577 | I8: 20.16973128 | J8: 19.79256579 | K8: 20.54689678 | M8: 3 | N8: 0.256097561 | O8: -0.6554235052 | P8: 19.48465586 | Q8: 19.20478586 | R8: 19.76452586 | S8: 0.1427908178 | T8: 0.02038921763 | U8: 19.50963404 | V8: 19.65793256 | W8: 19.45666153 | X8: 19.85920358 | Y8: 0.1596968339 | Z8: 0.02550307877 | AA8: 19.68319606 | AB8: 20.05143187 | AC8: 19.77112998 | AD8: 20.33173376 | AE8: 0.1924313739 | AF8: 0.03702983368 | AG8: 20.09249551 | AI8: 19.48136147 | AJ8: 0.1881114641 | AL8: 19.66484998 | AM8: 0.1596968339 | AO8: 20.16973128 | AP8: 0.1924313739
A9: 4 | B9: D市 | C9: 19.68011126 | D9: 19.38803087 | E9: 19.97219165 | F9: 19.77202554 | G9: 19.45114101 | H9: 20.09291006 | I9: 20.24828808 | J9: 19.95078771 | K9: 20.54578845 | M9: 4 | N9: 0.3536585366 | O9: -0.3754617702 | P9: 19.51059855 | Q9: 19.31411424 | R9: 19.70708287 | S9: 0.1002471003 | T9: 0.01004948112 | U9: 19.53165579 | V9: 19.66484998 | W9: 19.35184418 | X9: 19.97785577 | Y9: 0.1637165949 | Z9: 0.02680312344 | AA9: 19.68777528 | AB9: 20.16973128 | AC9: 19.79256579 | AD9: 20.54689678 | AE9: 0.1517859031 | AF9: 0.02303896039 | AG9: 20.1823504 | AI9: 19.68011126 | AJ9: 0.1490206068 | AL9: 19.77202554 | AM9: 0.1637165949 | AO9: 20.24828808 | AP9: 0.1517859031
A10: 5 | B10: E市 | C10: 19.48465586 | D10: 19.20478586 | E10: 19.76452586 | F10: 19.64537275 | G10: 19.39980686 | H10: 19.89093864 | I10: 20.05143187 | J10: 19.77112998 | K10: 20.33173376 | M10: 5 | N10: 0.4512195122 | O10: -0.1225808439 | P10: 19.53282133 | Q10: 19.32937322 | R10: 19.73626944 | S10: 0.1038000569 | T10: 0.01077445181 | U10: 19.55051984 | V10: 19.69267251 | W10: 19.337895 | X10: 20.04745001 | Y10: 0.1252887186 | Z10: 0.015697263 | AA10: 19.70619333 | AB10: 20.24607359 | AC10: 19.91476034 | AD10: 20.57738685 | AE10: 0.1430111681 | AF10: 0.0204521942 | AG10: 20.24033658 | AI10: 19.48465586 | AJ10: 0.1427908178 | AL10: 19.64537275 | AM10: 0.1252887186 | AO10: 20.05143187 | AP10: 0.1430111681
A11: 6 | B11: F市 | C11: 19.51059855 | D11: 19.31411424 | E11: 19.70708287 | F11: 19.69267251 | G11: 19.337895 | H11: 20.04745001 | I11: 20.3004899 | J11: 19.94770092 | K11: 20.65327888 | M11: 6 | N11: 0.5487804878 | O11: 0.1225808439 | P11: 19.65908845 | Q11: 19.42124271 | R11: 19.8969342 | S11: 0.1213498698 | T11: 0.01472579091 | U11: 19.65770309 | V11: 19.77202554 | W11: 19.45114101 | X11: 20.09291006 | Y11: 0.18100893 | Z11: 0.03276423274 | AA11: 19.75872371 | AB11: 20.24828808 | AC11: 19.95078771 | AD11: 20.54578845 | AE11: 0.1799943784 | AF11: 0.03239797625 | AG11: 20.2420186 | AI11: 19.51059855 | AJ11: 0.1002471003 | AL11: 19.69267251 | AM11: 0.18100893 | AO11: 20.3004899 | AP11: 0.1799943784
A12: 7 | B12: G市 | C12: 19.93181683 | D12: 19.60027935 | E12: 20.26335431 | F12: 20.03107072 | G12: 19.65218537 | H12: 20.40995608 | I12: 20.59925939 | J12: 20.3527852 | K12: 20.84573358 | M12: 7 | N12: 0.6463414634 | O12: 0.3754617702 | P12: 19.68011126 | Q12: 19.38803087 | R12: 19.97219165 | S12: 0.1490206068 | T12: 0.02220714124 | U12: 19.67554854 | V12: 19.84660804 | W12: 19.47723173 | X12: 20.21598435 | Y12: 0.1933088549 | Z12: 0.03736831337 | AA12: 19.80809609 | AB12: 20.3004899 | AC12: 19.94770092 | AD12: 20.65327888 | AE12: 0.1257521384 | AF12: 0.01581360032 | AG12: 20.28166875 | AI12: 19.93181683 | AJ12: 0.1691517747 | AL12: 20.03107072 | AM12: 0.1933088549 | AO12: 20.59925939 | AP12: 0.1257521384
A13: 8 | B13: H市 | C13: 19.99150766 | D13: 19.79123198 | E13: 20.19178334 | F13: 19.84660804 | G13: 19.47723173 | H13: 20.21598435 | I13: 20.39044381 | J13: 20.1805236 | K13: 20.60036401 | M13: 8 | N13: 0.743902439 | O13: 0.6554235052 | P13: 19.93181683 | Q13: 19.60027935 | R13: 20.26335431 | S13: 0.1691517747 | T13: 0.0286123229 | U13: 19.88921162 | V13: 19.88512967 | W13: 19.54702408 | X13: 20.22323526 | Y13: 0.1884573013 | Z13: 0.03551615443 | AA13: 19.83359677 | AB13: 20.39044381 | AC13: 20.1805236 | AD13: 20.60036401 | AE13: 0.1071021441 | AF13: 0.01147086927 | AG13: 20.34999368 | AI13: 19.99150766 | AJ13: 0.1021814692 | AL13: 19.84660804 | AM13: 0.1884573013 | AO13: 20.39044381 | AP13: 0.1071021441
A14: 9 | B14: I市 | C14: 19.53282133 | D14: 19.32937322 | E14: 19.73626944 | F14: 19.65793256 | G14: 19.45666153 | H14: 19.85920358 | I14: 20.04507728 | J14: 19.67729473 | K14: 20.41285982 | M14: 9 | N14: 0.8414634146 | O14: 1.000490546 | P14: 19.98767543 | Q14: 19.76228987 | R14: 20.21306099 | S14: 0.1149926318 | T14: 0.01322330537 | U14: 19.93662782 | V14: 19.89537634 | W14: 19.64481972 | X14: 20.14593295 | Y14: 0.102689299 | Z14: 0.01054509213 | AA14: 19.84037989 | AB14: 20.44512349 | AC14: 20.09149438 | AD14: 20.7987526 | AE14: 0.1876441553 | AF14: 0.03521032903 | AG14: 20.3915259 | AI14: 19.53282133 | AJ14: 0.1038000569 | AL14: 19.65793256 | AM14: 0.102689299 | AO14: 20.04507728 | AP14: 0.1876441553
A15: 10 | B15: J市 | C15: 19.98767543 | D15: 19.76228987 | E15: 20.21306099 | F15: 19.89537634 | G15: 19.64481972 | H15: 20.14593295 | I15: 20.44512349 | J15: 20.09149438 | K15: 20.7987526 | M15: 10 | N15: 0.9390243902 | O15: 1.546635271 | P15: 19.99150766 | Q15: 19.79123198 | R15: 20.19178334 | S15: 0.1021814692 | T15: 0.01044105265 | U15: 19.93988085 | V15: 20.03107072 | W15: 19.65218537 | X15: 20.40995608 | Y15: 0.1278350084 | Z15: 0.01634178938 | AA15: 19.93020732 | AB15: 20.59925939 | AC15: 20.3527852 | AD15: 20.84573358 | AE15: 0.1804230157 | AF15: 0.03255246459 | AG15: 20.50860057 | AI15: 19.98767543 | AJ15: 0.1149926318 | AL15: 19.89537634 | AM15: 0.1278350084 | AO15: 20.44512349 | AP15: 0.1804230157
O16: 推定値の平均 | P16: =AVERAGE(P6:P15) -> 19.64992231 | V16: =AVERAGE(V6:V15) -> 19.73267296 | AB16: =AVERAGE(AB6:AB15) -> 20.22221361
O17: 〃分散 | P17: =VAR(P6:P15) -> 0.06316030876 | V17: =VAR(V6:V15) -> 0.04663160867 | AB17: =VAR(AB6:AB15) -> 0.05964893071
O18: 〃標準偏差 | P18: =SQRT(P17) -> 0.2513171478 | V18: =SQRT(V17) -> 0.2159435312 | AB18: =SQRT(AB17) -> 0.2442313058
A19: =A3&"の分布の推移" -> XX県・６５歳健康寿命（年）【女性】の分布の推移 | G19: =A3&"の推定値の推移" -> XX県・６５歳健康寿命（年）【女性】の推定値の推移 | O19: 誤差分散 | P19: =AVERAGE(T6:T15) -> 0.01764918367 | V19: =AVERAGE(Z6:Z15) -> 0.0261966129 | AB19: =AVERAGE(AF6:AF15) -> 0.02523605378
A20: 誤差分散を補正した値であり推定値とは異なる | O20: 真値の分布の分散 | P20: =+P17-P19 -> 0.04551112509 | V20: =+V17-V19 -> 0.02043499577 | AB20: =+AB17-AB19 -> 0.03441287693
O21: 〃標準偏差 | P21: =SQRT(P20) -> 0.2133333661 | V21: =SQRT(V20) -> 0.1429510258 | AB21: =SQRT(AB20) -> 0.1855070805
O22: 凡例1 | P22: =C4&"(SD="&FIXED(P21,2)&")" -> 2000年(SD=0.21) | V22: =F4&"(SD="&FIXED(V21,2)&")" -> 2013年(SD=0.14) | AB22: =I4&"(SD="&FIXED(AB21,2)&")" -> 2016年(SD=0.19)
O23: 凡例2 | P23: =C4 -> 2000年 | V23: ="○"&F4 -> ○2013年 | AB23: ="●"&I4 -> ●2016年

Sheet 格差の縮小 (SMR用)
A1: XX県 | B1: 女性 | C1: 標準化死亡比 | F1: 図の軸範囲 | G1: 70 | H1: 120 | M1: データの行数
M2: =ROWS(M6:M15) -> 10
A3: =A1&"・"&C1&"【"&B1&"】" -> XX県・標準化死亡比【女性】 | P3: =C4 -> 2000年 | AB3: =F4 -> 2013年 | AN3: =I4 -> 2016年
A4: No. | B4: 市町村 | C4: 2000年 | F4: 2013年 | I4: 2016年 | P4: 元のスケール | U4: logスケール | AA4: 元のスケール | AB4: 元のスケール | AG4: logスケール | AM4: 元のスケール | AN4: 元のスケール | AS4: logスケール | AY4: 元のスケール | BA4: =C4 -> 2000年 | BD4: =F4 -> 2013年 | BG4: =I4 -> 2016年
C5: 推定値 | D5: 95％信頼区間 | F5: 推定値 | G5: 95％信頼区間 | I5: 推定値 | J5: 95％信頼区間 | M5: 順位 | N5: prob. | O5: Z値 | P5: 推定値 | Q5: 95％信頼区間 | S5: Δ下側 | T5: Δ上側 | U5: 推定値 | V5: 95％信頼区間 | X5: 標準誤差 | Y5: 標準誤差2 | Z5: 補正値 | AA5: 補正値 | AB5: 推定値 | AC5: 95％信頼区間 | AE5: Δ下側 | AF5: Δ上側 | AG5: 推定値 | AH5: 95％信頼区間 | AJ5: 標準誤差 | AK5: 標準誤差2 | AL5: 補正値 | AM5: 補正値 | AN5: 推定値 | AO5: 95％信頼区間 | AQ5: Δ下側 | AR5: Δ上側 | AS5: 推定値 | AT5: 95％信頼区間 | AV5: 標準誤差 | AW5: 標準誤差2 | AX5: 補正値 | AY5: 補正値 | BA5: 推定値 | BB5: Δ下側 | BC5: Δ上側 | BD5: 推定値 | BE5: Δ下側 | BF5: Δ上側 | BG5: 推定値 | BH5: Δ下側 | BI5: Δ上側
A6: 1 | B6: A市 | C6: 96.6 | D6: 93.73497695 | E6: 99.53033503 | F6: 90.7 | G6: 78.62202016 | H6: 104.1080617 | I6: 89.3 | J6: 86.56997023 | K6: 92.09421967 | M6: 1 | N6: =(M6-0.375)/(COUNT(M$6:M$15)+0.25) -> 0.06097560976 | O6: =_xlfn.NORM.INV(N6,0,1) -> -1.546635271 | P6: 88 | Q6: 84.3914399 | R6: 91.72318108 | S6: =P6-Q6 -> 3.608560102 | T6: =R6-P6 -> 3.723181082 | U6: =LN(P6) -> 4.477336814 | V6: =LN(Q6) -> 4.435465973 | W6: =LN(R6) -> 4.51877514 | X6: =(W6-V6)/1.96/2 -> 0.02125233839 | Y6: =X6^2 -> 0.0004516618869 | Z6: =(U6-U$16)*(U$21/U$18)+U$16 -> 4.480398067 | AA6: =EXP(Z6) -> 88.269803 | AB6: 76 | AC6: 64.67916364 | AD6: 88.73181529 | AE6: =AB6-AC6 -> 11.32083636 | AF6: =AD6-AB6 -> 12.73181529 | AG6: =LN(AB6) -> 4.33073334 | AH6: =LN(AC6) -> 4.169439104 | AI6: =LN(AD6) -> 4.485618509 | AJ6: =(AI6-AH6)/1.96/2 -> 0.08065801155 | AK6: =AJ6^2 -> 0.006505714827 | AL6: =(AG6-AG$16)*(AG$21/AG$18)+AG$16 -> 4.389754262 | AM6: =EXP(AL6) -> 80.62060498 | AN6: 85.8 | AO6: 82.56941006 | AP6: 89.12459643 | AQ6: =AN6-AO6 -> 3.230589943 | AR6: =AP6-AN6 -> 3.324596431 | AS6: =LN(AN6) -> 4.452019006 | AT6: =LN(AO6) -> 4.413639274 | AU6: =LN(AP6) -> 4.490035351 | AV6: =(AU6-AT6)/1.96/2 -> 0.01948879514 | AW6: =AV6^2 -> 0.0003798131362 | AX6: =(AS6-AS$16)*(AS$21/AS$18)+AS$16 -> 4.457834533 | AY6: =EXP(AX6) -> 86.30042592 | BA6: =C6 -> 96.6 | BB6: =C6-D6 -> 2.86502305 | BC6: =E6-C6 -> 2.930335025 | BD6: =F6 -> 90.7 | BE6: =F6-G6 -> 12.07797984 | BF6: =H6-F6 -> 13.40806168 | BG6: =I6 -> 89.3 | BH6: =I6-J6 -> 2.730029775 | BI6: =K6-I6 -> 2.794219673
A7: 2 | B7: B市 | C7: 99.7 | D7: 97.19176803 | E7: 102.2565853 | F7: 98.9 | G7: 88.17850786 | H7: 110.5655037 | I7: 94.1 | J7: 91.48687258 | K7: 96.7688316 | M7: 2 | N7: =(M7-0.375)/(COUNT(M$6:M$15)+0.25) -> 0.1585365854 | O7: -1.000490546 | P7: 91.7 | Q7: 88.26068553 | R7: 95.23899547 | S7: 3.439314469 | T7: 3.53899547 | U7: 4.518522379 | V7: 4.480294771 | W7: 4.556389474 | X7: 0.01941191409 | Y7: 0.0003768224085 | Z7: 4.520220663 | AA7: 91.85586489 | AB7: 83.2 | AC7: 71.93086346 | AD7: 95.73353818 | AE7: 11.26913654 | AF7: 12.53353818 | AG7: 4.421247348 | AH7: 4.275705428 | AI7: 4.561568688 | AJ7: 0.07292430109 | AK7: 0.00531795369 | AL7: 4.450339123 | AM7: 85.65598703 | AN7: 89.3 | AO7: 86.56997023 | AP7: 92.09421967 | AQ7: 2.730029775 | AR7: 2.794219673 | AS7: 4.492001488 | AT7: 4.460952991 | AU7: 4.52281218 | AV7: 0.01578040525 | AW7: 0.0002490211899 | AX7: 4.495279691 | AY7: 89.5932239 | BA7: =C7 -> 99.7 | BB7: =C7-D7 -> 2.508231967 | BC7: =E7-C7 -> 2.556585346 | BD7: =F7 -> 98.9 | BE7: =F7-G7 -> 10.72149214 | BF7: =H7-F7 -> 11.66550367 | BG7: =I7 -> 94.1 | BH7: =I7-J7 -> 2.613127419 | BI7: =K7-I7 -> 2.668831595
A8: 3 | B8: C市 | C8: 102 | D8: 99.31533007 | E8: 104.7388589 | F8: 97.1 | G8: 85.86166536 | H8: 109.4004019 | I8: 99.3 | J8: 96.43692589 | K8: 102.2264882 | M8: 3 | N8: 0.256097561 | O8: -0.6554235052 | P8: 92.9 | Q8: 89.96712754 | R8: 95.90413303 | S8: 2.932872458 | T8: 3.004133029 | U8: 4.531523646 | V8: 4.499444354 | W8: 4.563349078 | X8: 0.01630222555 | Y8: 0.0002657625579 | Z8: 4.532791673 | AA8: 93.01787447 | AB8: 83.4 | AC8: 69.62855372 | AD8: 99.09736886 | AE8: 13.77144628 | AF8: 15.69736886 | AG8: 4.423648309 | AH8: 4.243174738 | AI8: 4.596102891 | AJ8: 0.09003269207 | AK8: 0.008105885641 | AL8: 4.451946189 | AM8: 85.79375247 | AN8: 91.5 | AO8: 87.83673111 | AP8: 95.2767978 | AQ8: 3.66326889 | AR8: 3.776797802 | AS8: 4.516338972 | AT8: 4.475479763 | AU8: 4.556786316 | AV8: 0.02074146767 | AW8: 0.0004302084811 | AX8: 4.518072697 | AY8: 91.65877341 | BA8: 102 | BB8: 2.684669934 | BC8: 2.738858865 | BD8: 97.1 | BE8: 11.23833464 | BF8: 12.30040192 | BG8: 99.3 | BH8: 2.863074111 | BI8: 2.926488198
A9: 4 | B9: D市 | C9: 110.7 | D9: 107.5203389 | E9: 113.949815 | F9: 109 | G9: 95.50753254 | H9: 123.8641921 | I9: 101.9 | J9: 98.6202145 | K9: 105.2610644 | M9: 4 | N9: 0.3536585366 | O9: -0.3754617702 | P9: 94 | Q9: 91.29474548 | R9: 96.76506021 | S9: 2.705254522 | T9: 2.765060211 | U9: 4.543294782 | V9: 4.514093234 | W9: 4.572285981 | X9: 0.01484508857 | Y9: 0.0002203766548 | Z9: 4.544173263 | AA9: 94.08261347 | AB9: 90.7 | AC9: 78.62202016 | AD9: 104.1080617 | AE9: 12.07797984 | AF9: 13.40806168 | AG9: 4.507557357 | AH9: 4.364651815 | AI9: 4.645429414 | AJ9: 0.07162693863 | AK9: 0.005130418337 | AL9: 4.508110071 | AM9: 90.750145 | AN9: 93.1 | AO9: 89.09747077 | AP9: 97.23600113 | AQ9: 4.002529227 | AR9: 4.136001134 | AS9: 4.533674184 | AT9: 4.489730948 | AU9: 4.577141025 | AV9: 0.02229848909 | AW9: 0.0004972226159 | AX9: 4.534307801 | AY9: 93.15900841 | BA9: 110.7 | BB9: 3.179661092 | BC9: 3.249814954 | BD9: 109 | BE9: 13.49246746 | BF9: 14.86419214 | BG9: 101.9 | BH9: 3.2797855 | BI9: 3.36106436
A10: 5 | B10: E市 | C10: 97.4 | D10: 94.55615476 | E10: 100.3076467 | F10: 83.2 | G10: 71.93086346 | H10: 95.73353818 | I10: 97.3 | J10: 94.25555885 | K10: 100.4177401 | M10: 5 | N10: 0.4512195122 | O10: -0.1225808439 | P10: 94.1 | Q10: 90.82045984 | R10: 97.4677032 | S10: 3.279540163 | T10: 3.367703203 | U10: 4.544358047 | V10: 4.508884589 | W10: 4.579521074 | X10: 0.01801951151 | Y10: 0.000324702795 | Z10: 4.54520134 | AA10: 94.17938741 | AB10: 91.1 | AC10: 77.36414375 | AD10: 106.5710965 | AE10: 13.73585625 | AF10: 15.47109649 | AG10: 4.511957804 | AH10: 4.348523414 | AI10: 4.668812335 | AJ10: 0.08170635738 | AK10: 0.006675928837 | AL10: 4.511055477 | AM10: 91.01783503 | AN10: 94.1 | AO10: 91.48687258 | AP10: 96.7688316 | AQ10: 2.613127419 | AR10: 2.668831595 | AS10: 4.544358047 | AT10: 4.516195493 | AU10: 4.572324955 | AV10: 0.01431874027 | AW10: 0.0002050263229 | AX10: 4.544313656 | AY10: 94.09582294 | BA10: 97.4 | BB10: 2.843845243 | BC10: 2.907646689 | BD10: 83.2 | BE10: 11.26913654 | BF10: 12.53353818 | BG10: 97.3 | BH10: 3.044441155 | BI10: 3.117740128
A11: 6 | B11: F市 | C11: 92.9 | D11: 89.96712754 | E11: 95.90413303 | F11: 76 | G11: 64.67916364 | H11: 88.73181529 | I11: 94.6 | J11: 91.40721684 | K11: 97.87583928 | M11: 6 | N11: 0.5487804878 | O11: 0.1225808439 | P11: 96.6 | Q11: 93.73497695 | R11: 99.53033503 | S11: 2.86502305 | T11: 2.930335025 | U11: 4.570578741 | V11: 4.540471406 | W11: 4.600462472 | X11: 0.01530384341 | Y11: 0.0002342076232 | Z11: 4.570554304 | AA11: 96.59763935 | AB11: 91.4 | AC11: 79.9679245 | AD11: 104.0075821 | AE11: 11.4320755 | AF11: 12.60758214 | AG11: 4.515245478 | AH11: 4.381625611 | AI11: 4.644463802 | AJ11: 0.06705055897 | AK11: 0.004495777458 | AL11: 4.513256056 | AM11: 91.21834757 | AN11: 94.5 | AO11: 91.56791371 | AP11: 97.50207691 | AQ11: 2.932086287 | AR11: 3.002076905 | AS11: 4.548599834 | AT11: 4.517080923 | AU11: 4.579873679 | AV11: 0.01601856021 | AW11: 0.0002565942713 | AX11: 4.548286256 | AY11: 94.4703715 | BA11: 92.9 | BB11: 2.932872458 | BC11: 3.004133029 | BD11: 76 | BE11: 11.32083636 | BF11: 12.73181529 | BG11: 94.6 | BH11: 3.192783165 | BI11: 3.275839285
A12: 7 | B12: G市 | C12: 94 | D12: 91.29474548 | E12: 96.76506021 | F12: 91.4 | G12: 79.9679245 | H12: 104.0075821 | I12: 94.5 | J12: 91.56791371 | K12: 97.50207691 | M12: 7 | N12: 0.6463414634 | O12: 0.3754617702 | P12: 97.4 | Q12: 94.55615476 | R12: 100.3076467 | S12: 2.843845243 | T12: 2.907646689 | U12: 4.578826211 | V12: 4.549193888 | W12: 4.60824193 | X12: 0.01506327602 | Y12: 0.0002269022844 | Z12: 4.578528836 | AA12: 97.37104005 | AB12: 91.9 | AC12: 76.31586706 | AD12: 109.7298699 | AE12: 15.58413294 | AF12: 17.82986991 | AG12: 4.520701029 | AH12: 4.334880873 | AI12: 4.698021617 | AJ12: 0.09263794504 | AK12: 0.008581788862 | AL12: 4.516907688 | AM12: 91.55205227 | AN12: 94.6 | AO12: 91.40721684 | AP12: 97.87583928 | AQ12: 3.192783165 | AR12: 3.275839285 | AS12: 4.549657476 | AT12: 4.515324434 | AU12: 4.583699729 | AV12: 0.01744267734 | AW12: 0.000304246993 | AX12: 4.549276779 | AY12: 94.56399291 | BA12: 94 | BB12: 2.705254522 | BC12: 2.765060211 | BD12: 91.4 | BE12: 11.4320755 | BF12: 12.60758214 | BG12: 94.5 | BH12: 2.932086287 | BI12: 3.002076905
A13: 8 | B13: H市 | C13: 91.7 | D13: 88.26068553 | E13: 95.23899547 | F13: 83.4 | G13: 69.62855372 | H13: 99.09736886 | I13: 91.5 | J13: 87.83673111 | K13: 95.2767978 | M13: 8 | N13: 0.743902439 | O13: 0.6554235052 | P13: 99.7 | Q13: 97.19176803 | R13: 102.2565853 | S13: 2.508231967 | T13: 2.556585346 | U13: 4.602165677 | V13: 4.576686017 | W13: 4.627485197 | X13: 0.01295897458 | Y13: 0.0001679350221 | Z13: 4.601095921 | AA13: 99.59340234 | AB13: 97.1 | AC13: 85.86166536 | AD13: 109.4004019 | AE13: 11.23833464 | AF13: 12.30040192 | AG13: 4.575741375 | AH13: 4.452737459 | AI13: 4.695014564 | AJ13: 0.06180538393 | AK13: 0.003819905483 | AL13: 4.553748524 | AM13: 94.98780588 | AN13: 97.3 | AO13: 94.25555885 | AP13: 100.4177401 | AQ13: 3.044441155 | AR13: 3.117740128 | AS13: 4.577798989 | AT13: 4.546009804 | AU13: 4.609338886 | AV13: 0.016155378 | AW13: 0.0002609962384 | AX13: 4.575632407 | AY13: 97.08941972 | BA13: 91.7 | BB13: 3.439314469 | BC13: 3.53899547 | BD13: 83.4 | BE13: 13.77144628 | BF13: 15.69736886 | BG13: 91.5 | BH13: 3.66326889 | BI13: 3.776797802
A14: 9 | B14: I市 | C14: 94.1 | D14: 90.82045984 | E14: 97.4677032 | F14: 91.1 | G14: 77.36414375 | H14: 106.5710965 | I14: 85.8 | J14: 82.56941006 | K14: 89.12459643 | M14: 9 | N14: 0.8414634146 | O14: 1.000490546 | P14: 102 | Q14: 99.31533007 | R14: 104.7388589 | S14: 2.684669934 | T14: 2.738858865 | U14: 4.624972813 | V14: 4.59829994 | W14: 4.651470194 | X14: 0.01356384015 | Y14: 0.0001839777597 | Z14: 4.623148292 | AA14: 101.8140685 | AB14: 98.9 | AC14: 88.17850786 | AD14: 110.5655037 | AE14: 10.72149214 | AF14: 11.66550367 | AG14: 4.594109239 | AH14: 4.479363258 | AI14: 4.705608139 | AJ14: 0.05771553071 | AK14: 0.003331082485 | AL14: 4.566042914 | AM14: 96.16283127 | AN14: 99.3 | AO14: 96.43692589 | AP14: 102.2264882 | AQ14: 2.863074111 | AR14: 2.926488198 | AS14: 4.598145571 | AT14: 4.568889177 | AU14: 4.627190824 | AV14: 0.01487286921 | AW14: 0.0002212022385 | AX14: 4.594687776 | AY14: 98.95723393 | BA14: 94.1 | BB14: 3.279540163 | BC14: 3.367703203 | BD14: 91.1 | BE14: 13.73585625 | BF14: 15.47109649 | BG14: 85.8 | BH14: 3.230589943 | BI14: 3.324596431
A15: 10 | B15: J市 | C15: 88 | D15: 84.3914399 | E15: 91.72318108 | F15: 91.9 | G15: 76.31586706 | H15: 109.7298699 | I15: 93.1 | J15: 89.09747077 | K15: 97.23600113 | M15: 10 | N15: 0.9390243902 | O15: 1.546635271 | P15: 110.7 | Q15: 107.5203389 | R15: 113.949815 | S15: 3.179661092 | T15: 3.249814954 | U15: 4.70682384 | V15: 4.677680029 | W15: 4.735758132 | X15: 0.01481584259 | Y15: 0.0002195091916 | Z15: 4.702290591 | AA15: 110.1993051 | AB15: 109 | AC15: 95.50753254 | AD15: 123.8641921 | AE15: 13.49246746 | AF15: 14.86419214 | AG15: 4.691347882 | AH15: 4.559205119 | AI15: 4.819185741 | AJ15: 0.06632158714 | AK15: 0.004398552921 | AL15: 4.631128859 | AM15: 102.6298534 | AN15: 101.9 | AO15: 98.6202145 | AP15: 105.2610644 | AQ15: 3.2797855 | AR15: 3.36106436 | AS15: 4.62399194 | AT15: 4.591276256 | AU15: 4.656443592 | AV15: 0.01662432036 | AW15: 0.0002763680273 | AX15: 4.618893912 | AY15: 101.3818329 | BA15: 88 | BB15: 3.608560102 | BC15: 3.723181082 | BD15: 91.9 | BE15: 15.58413294 | BF15: 17.82986991 | BG15: 93.1 | BH15: 4.002529227 | BI15: 4.136001134
O16: 推定値の平均 | U16: =AVERAGE(U6:U15) -> 4.569840295 | AG16: =AVERAGE(AG6:AG15) -> 4.509228916 | AN16: =AVERAGE(AN6:AN15) -> 94.14 | AS16: =AVERAGE(AS6:AS15) -> 4.543658551
O17: 〃分散 | U17: =VAR(U6:U15) -> 0.004104767291 | AG17: =VAR(AG6:AG15) -> 0.01021104564 | AN17: =VAR(AN6:AN15) -> 22.02266667 | AS17: =VAR(AS6:AS15) -> 0.002506784025
O18: 〃標準偏差 | U18: =SQRT(U17) -> 0.06406845785 | AG18: =SQRT(AG17) -> 0.1010497186 | AN18: =SQRT(AN17) -> 4.692831413 | AS18: =SQRT(AS17) -> 0.05006779429
A19: =A3&"の分布の推移" -> XX県・標準化死亡比【女性】の分布の推移 | G19: =A3&"の推定値の推移" -> XX県・標準化死亡比【女性】の推定値の推移 | O19: 誤差分散 | U19: =AVERAGE(Y6:Y15) -> 0.0002671858184 | AG19: =AVERAGE(AK6:AK15) -> 0.005636300854 | AN19: =AVERAGE(AX6:AX15) -> 4.543658551 | AS19: =AVERAGE(AW6:AW15) -> 0.0003080699514
A20: 誤差分散を補正した値であり推定値とは異なる | O20: 真値の分布の分散 | U20: =+U17-U19 -> 0.003837581472 | AG20: =+AG17-AG19 -> 0.004574744784 | AN20: =+AN17-AN19 -> 17.47900812 | AS20: =+AS17-AS19 -> 0.002198714074
O21: 〃標準偏差 | U21: =SQRT(U20) -> 0.06194821605 | AA21: =STDEV(AA6:AA15) -> 6.132912705 | AG21: =SQRT(AG20) -> 0.06763685965 | AM21: =STDEV(AM6:AM15) -> 6.160864619 | AN21: =SQRT(AN20) -> 4.18079037 | AS21: =SQRT(AS20) -> 0.04689044757 | AY21: =STDEV(AY6:AY15) -> 4.395566792
O22: 凡例1 | AA22: =C4&"(SD="&FIXED(AA21,2)&")" -> 2000年(SD=6.13) | AM22: =F4&"(SD="&FIXED(AM21,2)&")" -> 2013年(SD=6.16) | AY22: =I4&"(SD="&FIXED(AY21,2)&")" -> 2016年(SD=4.40)
O23: 凡例2 | AA23: =C4 -> 2000年 | AM23: ="○"&F4 -> ○2013年 | AY23: ="●"&I4 -> ●2016年
